fUST/lending_fUST_20251016
["ID","MTS","AMOUNT","RATE_DAILY","PERIOD"]
[391342583,1760549448142,-178.799669,0.00029639,30]
[391342584,1760549448151,-178.799669,0.00029639,30]
[391342585,1760549448160,-178.799669,0.00029639,30]
[391342586,1760549448170,-196.175422,0.00029639,30]
[391342587,1760549448179,-196.175422,0.00029639,30]
[391342588,1760549448188,-196.175422,0.00029639,30]
[391342589,1760549448197,-196.175422,0.00029639,30]
[391342590,1760549448206,-151.0,0.00029639,30]
[391342591,1760549448215,-151.0,0.00029639,30]
[391342592,1760549448225,-151.78478,0.00029639,30]
[391342593,1760549448234,-151.0,0.00029639,2]
[391342594,1760549448246,-151.0,0.00029639,30]
[391342595,1760549448256,-151.0,0.00029639,30]
[391342596,1760549448265,-151.0,0.00029639,30]
[391342597,1760549448274,-151.0,0.00029639,30]
[391342598,1760549448284,-151.0,0.00029639,30]
[391342599,1760549448293,-151.0,0.00029639,30]
[391342600,1760549448306,-151.0,0.00029639,30]
[391342601,1760549448316,-151.0,0.00029639,30]
[391342602,1760549448325,-199.908455,0.00029639,15]
[391342603,1760549448334,-560.478171,0.00029639,30]
[391342604,1760549448344,-199.908455,0.00029639,15]
[391342605,1760549448353,-560.478171,0.00029639,30]
[391342606,1760549448362,-199.908455,0.00029639,15]
[391342607,1760549448372,-560.478171,0.00029639,30]
[391342608,1760549448382,-199.908455,0.00029639,15]
[391342609,1760549448393,-560.478171,0.00029639,30]
[391342610,1760549448403,-151.0,0.00029639,30]
[391342611,1760549448414,-151.0,0.00029639,30]
[391342612,1760549448429,-151.0,0.00029639,30]
[391342613,1760549448444,-151.0,0.00029639,30]
[391342614,1760549448454,-151.0,0.00029639,30]
[391342615,1760549448463,-151.0,0.00029639,30]
[391342616,1760549448476,-151.0,0.00029639,30]
[391342617,1760549448486,-151.0,0.00029639,30]
[391342618,1760549448497,-151.0,0.00029639,30]
[391342619,1760549448507,-151.0,0.00029639,30]
[391342620,1760549448516,-194.010014,0.00029639,30]
[391342621,1760549448525,-194.010014,0.00029639,30]
[391342622,1760549448535,-194.010014,0.00029639,30]
[391342623,1760549448544,-194.010014,0.00029639,30]
[391342624,1760549448553,-151.0,0.00029639,30]
[391342625,1760549448563,-152.774477,0.00029639,30]
[391342626,1760549448572,-151.0,0.00029639,30]
[391342627,1760549448581,-151.0,0.00029639,30]
[391342628,1760549448590,-151.0,0.00029639,30]
[391342629,1760549448599,-151.0,0.00029639,30]
[391342630,1760549448609,-175.049412,0.00029639,30]
[391342631,1760549448618,-175.049412,0.00029639,30]
[391342632,1760549448627,-175.049412,0.00029639,30]
[391342633,1760549448637,-175.049412,0.00029639,30]
[391342634,1760549448646,-151.0,0.00029639,30]
[391342635,1760549448655,-151.0,0.00029639,30]
[391342636,1760549448665,-151.0,0.00029639,30]
[391342637,1760549448674,-459.082157,0.00029639,30]
[391342638,1760549448684,-459.082157,0.00029639,30]
[391342639,1760549448693,-459.082157,0.00029639,30]
[391342640,1760549448702,-459.082157,0.00029639,30]
[391342641,1760549448712,-151.0,0.00029639,30]
[391342642,1760549448721,-170.909113,0.00029639,30]
[391342643,1760549448730,-444.975503,0.00029639,30]
[391342644,1760549448741,-444.975503,0.00029639,30]
[391342645,1760549448750,-444.975503,0.00029639,30]
[391342646,1760549448760,-444.975503,0.00029639,30]
[391342647,1760549448770,-151.0,0.00029639,30]
[391342648,1760549448779,-151.0,0.00029639,30]
[391342649,1760549448789,-212.288045,0.00029639,30]
[391342650,1760549448798,-212.288045,0.00029639,30]
[391342651,1760549448807,-212.288045,0.00029639,30]
[391342652,1760549448817,-151.819959,0.00029639,30]
[391342653,1760549448825,-212.288045,0.00029639,30]
[391342654,1760549448835,-151.0,0.00029639,30]
[391342655,1760549448845,-151.0,0.00029639,30]
[391342656,1760549448854,-151.0,0.00029639,30]
[391342657,1760549448863,-151.0,0.00029639,30]
[391342658,1760549448872,-174.814217,0.00029639,30]
[391342659,1760549448882,-151.0,0.00029639,30]
[391342660,1760549448892,-151.0,0.00029639,30]
[391342661,1760549448901,-151.0,0.00029639,30]
[391342662,1760549448911,-151.0,0.00029639,30]
[391342663,1760549448920,-151.0,0.00029639,30]
[391342664,1760549448931,-151.0,0.00029639,30]
[391342665,1760549448940,-151.0,0.00029639,30]
[391342666,1760549448949,-151.0,0.00029639,30]
[391342667,1760549448959,-151.0,0.00029639,30]
[391342668,1760549448968,-151.0,0.00029639,30]
[391342669,1760549448977,-151.0,0.00029639,30]
[391342670,1760549448987,-151.0,0.00029639,30]
[391342671,1760549448998,-151.0,0.00029639,30]
[391342672,1760549449007,-151.0,0.00029639,30]
[391342673,1760549449016,-151.0,0.00029639,30]
[391342674,1760549449026,-151.0,0.00029639,30]
[391342675,1760549449035,-151.0,0.00029639,30]
[391342676,1760549449044,-151.0,0.00029639,30]
[391342677,1760549449054,-246.6382,0.00029639,30]
[391342678,1760549449063,-151.0,0.00029639,30]
[391342679,1760549449072,-182.557602,0.00029639,30]
[391342680,1760549449082,-151.0,0.00029639,30]
[391342681,1760549449091,-151.0,0.00029639,30]
[391342682,1760549449100,-237.179834,0.00029639,30]
[391342683,1760549449110,-151.0,0.00029639,30]
[391342684,1760549449119,-151.0,0.00029639,30]
[391342685,1760549449128,-151.0,0.00029639,30]
[391342686,1760549449139,-151.0,0.00029639,30]
[391342687,1760549449148,-222.497629,0.00029639,30]
[391342688,1760549449159,-1217.204435,0.00029639,30]
[391342689,1760549449168,-1217.204435,0.00029639,30]
[391342690,1760549449180,-1217.204435,0.00029639,30]
[391342691,1760549449189,-647.34890846,0.00029639,30]
[391342692,1760549449336,-251.55809091,0.00029466,10]
[391342696,1760550368739,500.0,0.00030495,60]
[391342697,1760550368967,500.0,0.00030495,60]
[391342698,1760550369223,500.0,0.00030495,60]
[391342699,1760550369515,500.0,0.00030495,60]
[391342700,1760550369788,500.0,0.00030495,60]
[391342701,1760550370082,500.0,0.00030495,60]
[391342702,1760550370332,500.0,0.00030495,60]
[391342703,1760550370611,500.0,0.00030495,60]
[391342704,1760550370867,500.0,0.00030495,60]
[391342705,1760550371167,500.0,0.00030495,60]
[391342706,1760550371366,500.0,0.00030495,60]
[391342707,1760550371644,500.0,0.00030495,60]
[391342708,1760550371882,500.0,0.00030495,60]
[391342709,1760550372500,500.0,0.00030495,60]
[391342710,1760550372780,500.0,0.00030495,60]
[391342711,1760550373063,500.0,0.00030495,60]
[391342712,1760550373352,500.0,0.00030495,60]
[391342713,1760550373647,500.0,0.00030495,60]
[391342714,1760550373888,500.0,0.00030495,60]
[391342715,1760550374149,536.36166167,0.00030495,60]
[391342716,1760550514970,10000.0,0.00030495,120]
[391342756,1760550632531,-150.0,0.00019099,2]
[391342758,1760550632542,-300.0,0.00019099,2]
[391342760,1760550632556,-1200.0,0.00019099,2]
[391342762,1760550632566,-5504.18735735,0.000191,2]
[391342764,1760550632575,-343.64601407,0.000191,2]
[391342766,1760550632584,-245.62976558,0.00019699,2]
[391342768,1760550632594,-150.0,0.00024236,2]
[391342770,1760550632603,-200.0,0.00027102,15]
[391342772,1760550632612,-411.0,0.00028478,2]
[391342774,1760550632621,-500.0,0.00028556,7]
[391342776,1760550632631,-1544.77222365,0.0002899,2]
[391342778,1760550632639,-745.93909876,0.0002928,2]
[391342780,1760550632648,-662.427304,0.00029359,2]
[391342782,1760550632658,-745.93909875,0.0002936,2]
[391342784,1760550632667,-500.0,0.00029366,2]
[391342787,1760550632676,-500.0,0.00029366,2]
[391342790,1760550632685,-500.0,0.00029366,2]
[391342793,1760550632697,-500.0,0.00029366,2]
[391342796,1760550632707,-500.0,0.00029366,2]
[391342799,1760550632716,-612.46,0.00029366,2]
[391342802,1760550632725,-184.88,0.00029366,22]
[391342805,1760550632736,-389.96,0.00029366,3]
[391342807,1760550632745,-229.85,0.00029366,10]
[391342809,1760550632755,-38315.0830075,0.00029366,2]
[391342812,1760550632764,-1230.1462425,0.00029366,2]
[391342814,1760550632774,-2999.0,0.00029376,2]
[391342817,1760550632787,-25747.70199176,0.00029376,2]
[391342822,1760550632798,-2380.53516283,0.00029376,2]
[391342939,1760550638415,-389.39,0.00029366,10]
[391342941,1760550638427,-670.7,0.00029366,3]
[391342943,1760550638437,-188.30248743,0.00029375,2]
[391342945,1760550638448,-500.0,0.00029375,2]
[391342947,1760550638458,-500.0,0.00029375,2]
[391342949,1760550638468,-593.94229096,0.00029375,2]
[391342951,1760550638479,-500.0,0.00029375,2]
[391342952,1760550638490,-183.41899847,0.00029375,2]
[391342954,1760550638500,-218.66787928,0.00029375,2]
[391342956,1760550638511,-273.12911458,0.00029375,2]
[391342958,1760550638522,-157.95081138,0.00029375,2]
[391342961,1760550638542,-307.8364998,0.00029375,2]
[391343037,1760550640473,-34.21268882,0.00029375,2]
[391343038,1760550640483,-366.24086806,0.00029375,2]
[391343039,1760550640492,-11402.05903468,0.00029376,2]
[391343346,1760550644830,-324.5,0.00029366,10]
[391343348,1760550644840,-23977.1799,0.00029376,2]
[391343350,1760550644851,-58106.03284587,0.00029376,2]
[391343360,1760550644936,-555.21288921,0.00029376,2]
[391343533,1760550646585,-16596.18454304,0.00029376,2]
[391343748,1760550843480,403.622033,0.00013699,2]
[391343756,1760551828760,500.0,0.00030504,60]
[391343757,1760551829029,500.0,0.00030504,60]
[391343758,1760551829271,500.0,0.00030504,60]
[391343759,1760551829571,500.0,0.00030504,60]
[391343760,1760551829818,500.0,0.00030504,60]
[391343761,1760551830061,500.0,0.00030504,60]
[391343762,1760551830348,500.0,0.00030504,60]
[391343763,1760551830586,500.0,0.00030504,60]
[391343764,1760551831184,500.0,0.00030504,60]
[391343787,1760551831608,312.05819439,0.00030504,60]
[391343806,1760551831786,-678.51505841,0.000199,2]
[391343808,1760551831796,-150.0,0.000201,2]
[391343810,1760551831807,-156.35398593,0.000201,2]
[391343812,1760551831816,-200.0,0.00020187,2]
[391343814,1760551831825,-403.622033,0.00020187,2]
[391343817,1760551831835,-500.0,0.00020187,2]
[391343819,1760551831844,-172.5,0.000207,2]
[391343820,1760551831854,-195.0,0.000213,2]
[391343823,1760551831863,-1706.14346363,0.00023183,2]
[391343824,1760551831873,-150.0,0.00025361,2]
[391343826,1760551831883,-184.88,0.00025399,10]
[391343829,1760551831892,-281.17350901,0.00025492,2]
[391343831,1760551831902,-1200.0,0.00025503,2]
[391343833,1760551831912,-300.0,0.00025504,2]
[391343835,1760551831922,-272.41470216,0.00025504,2]
[391343837,1760551831938,-27.58529784,0.00025504,2]
[391343839,1760551831948,-300.0,0.00025504,2]
[391343841,1760551831958,-300.0,0.00025504,2]
[391343843,1760551831968,-50000.0,0.00025505,2]
[391343845,1760551831977,-1200.0,0.00025505,2]
[391343847,1760551831987,-150.0,0.00026569,2]
[391343849,1760551831996,-403.622033,0.00026676,2]
[391343850,1760551832005,-199.0,0.00026847,7]
[391343852,1760551832016,-824.47,0.00026849,20]
[391343854,1760551832025,-205.1561161,0.00027121,8]
[391343856,1760551832036,-402.51317252,0.00027237,2]
[391343858,1760551832045,-915.056486,0.00027362,2]
[391343860,1760551832055,-666.0,0.00027521,2]
[391343862,1760551832064,-300.0,0.00027615,2]
[391343864,1760551832074,-150.0,0.00027776,2]
[391343866,1760551832083,-662.427304,0.00028115,2]
[391343867,1760551832094,-5131.52074922,0.00028115,2]
[391343869,1760551832104,-250.0,0.00028115,2]
[391343871,1760551832114,-250.0,0.00028115,2]
[391343872,1760551832123,-250.0,0.00028115,2]
[391343873,1760551832135,-250.0,0.00028115,2]
[391343875,1760551832148,-250.0,0.00028115,2]
[391343877,1760551832157,-250.0,0.00028115,2]
[391343878,1760551832166,-905.574,0.00028478,2]
[391343880,1760551832175,-2161.0,0.00028478,2]
[391343882,1760551832186,-631.0,0.00028478,2]
[391343884,1760551832196,-411.0,0.00028478,2]
[391343886,1760551832206,-160.0,0.000285,2]
[391343888,1760551832216,-500.0,0.00028556,7]
[391343890,1760551832227,-686.93711425,0.00028663,2]
[391343892,1760551832237,-1212.39860318,0.00028933,2]
[391343894,1760551832247,-260.0,0.00029048,2]
[391343897,1760551832257,-712.35378748,0.00029211,2]
[391343898,1760551832267,-1212.39860318,0.00029278,2]
[391343900,1760551832276,-1666.11435849,0.00029439,2]
[391343902,1760551832287,-1666.11435845,0.00029479,2]
[391343904,1760551832297,-1666.11435845,0.0002952,2]
[391343906,1760551832306,-301.86744815,0.00029529,2]
[391343908,1760551832316,-348.54143538,0.00029529,2]
[391343910,1760551832325,-281.0,0.00029535,2]
[391343912,1760551832335,-2999.0,0.00029538,2]
[391343915,1760551832345,-208.46531951,0.00029538,2]
[391343916,1760551832355,-353.25174909,0.00029538,2]
[391343919,1760551832365,-270.41,0.00029539,10]
[391343920,1760551832374,-2414.9395852,0.00029539,2]
[391343922,1760551832384,-2788.33148304,0.00029539,2]
[391343924,1760551832395,-306.7482817,0.00029548,10]
[391343926,1760551832404,-151.0,0.00029549,30]
[391343928,1760551832414,-151.0,0.00029549,30]
[391343929,1760551832423,-151.0,0.00029549,15]
[391343931,1760551832433,-151.0,0.00029549,15]
[391343933,1760551832443,-151.0,0.00029549,30]
[391343935,1760551832453,-151.0,0.00029549,7]
[391343937,1760551832462,-151.0,0.00029549,7]
[391343939,1760551832472,-151.0,0.00029549,30]
[391343941,1760551832481,-151.0,0.00029549,30]
[391343943,1760551832491,-151.0,0.00029549,30]
[391343944,1760551832500,-151.0,0.00029549,30]
[391343945,1760551832510,-151.0,0.00029549,30]
[391343946,1760551832519,-151.0,0.00029549,30]
[391343947,1760551832529,-151.0,0.00029549,30]
[391343948,1760551832539,-151.0,0.00029549,30]
[391343949,1760551832662,-151.0,0.00029549,30]
[391343950,1760551832673,-151.0,0.00029549,30]
[391343951,1760551832683,-151.0,0.00029549,30]
[391343952,1760551832693,-151.0,0.00029549,30]
[391343953,1760551832702,-151.0,0.00029549,30]
[391343954,1760551832712,-156.903043,0.00029549,30]
[391343955,1760551832721,-151.0,0.00029549,2]
[391343956,1760551832731,-151.0,0.00029549,30]
[391343957,1760551832741,-151.0,0.00029549,30]
[391343958,1760551832750,-253.35847,0.00029549,30]
[391343959,1760551832760,-151.0,0.00029549,30]
[391343960,1760551832770,-154.026866,0.00029549,30]
[391343961,1760551832781,-151.0,0.00029549,30]
[391343962,1760551832794,-151.0,0.00029549,30]
[391343963,1760551832804,-151.0,0.00029549,30]
[391343964,1760551832813,-151.0,0.00029549,30]
[391343965,1760551832823,-151.0,0.00029549,30]
[391343966,1760551832833,-151.0,0.00029549,30]
[391343967,1760551832843,-224.191269,0.00029549,30]
[391343968,1760551832853,-151.0,0.00029549,30]
[391343969,1760551832863,-224.191269,0.00029549,30]
[391343970,1760551832872,-224.191269,0.00029549,30]
[391343971,1760551832882,-224.191269,0.00029549,30]
[391343972,1760551832892,-151.0,0.00029549,30]
[391343973,1760551832901,-151.0,0.00029549,30]
[391343974,1760551832912,-151.0,0.00029549,30]
[391343975,1760551832921,-151.0,0.00029549,30]
[391343976,1760551832931,-151.0,0.00029549,30]
[391343977,1760551832940,-151.0,0.00029549,30]
[391343978,1760551832950,-151.0,0.00029549,30]
[391343979,1760551832960,-151.0,0.00029549,30]
[391343980,1760551832970,-151.0,0.00029549,30]
[391343981,1760551832979,-151.0,0.00029549,30]
[391343982,1760551832989,-151.0,0.00029549,30]
[391343983,1760551832999,-151.0,0.00029549,30]
[391343984,1760551833009,-228.52928598,0.00029549,30]
[391343985,1760551833018,-151.0,0.00029549,30]
[391343986,1760551833028,-151.0,0.00029549,30]
[391343987,1760551833038,-177.990201,0.00029549,30]
[391343988,1760551833048,-177.990201,0.00029549,30]
[391343989,1760551833058,-177.990201,0.00029549,30]
[391343990,1760551833067,-177.990201,0.00029549,30]
[391343991,1760551833077,-151.0,0.00029549,30]
[391343992,1760551833087,-151.0,0.00029549,30]
[391343993,1760551833096,-151.0,0.00029549,30]
[391343994,1760551833106,-151.0,0.00029549,30]
[391343995,1760551833115,-151.0,0.00029549,30]
[391343996,1760551833125,-188.304363,0.00029549,30]
[391343997,1760551833136,-151.0,0.00029549,30]
[391343998,1760551833147,-151.0,0.00029549,30]
[391343999,1760551833157,-151.0,0.00029549,30]
[391344000,1760551833167,-151.0,0.00029549,30]
[391344001,1760551833176,-151.0,0.00029549,30]
[391344002,1760551833187,-151.0,0.00029549,30]
[391344003,1760551833196,-151.0,0.00029549,30]
[391344004,1760551833206,-151.0,0.00029549,30]
[391344005,1760551833217,-151.0,0.00029549,30]
[391344006,1760551833227,-515.37455,0.00029549,30]
[391344007,1760551833237,-515.37455,0.00029549,30]
[391344008,1760551833248,-515.37455,0.00029549,30]
[391344009,1760551833257,-515.37455,0.00029549,30]
[391344010,1760551833268,-151.0,0.00029549,30]
[391344011,1760551833278,-151.0,0.00029549,30]
[391344012,1760551833288,-151.0,0.00029549,30]
[391344013,1760551833298,-183.632862,0.00029549,30]
[391344014,1760551833307,-183.632862,0.00029549,30]
[391344015,1760551833317,-183.632862,0.00029549,30]
[391344016,1760551833326,-183.632862,0.00029549,30]
[391344017,1760551833336,-151.0,0.00029549,30]
[391344018,1760551833346,-151.0,0.00029549,30]
[391344019,1760551833356,-151.0,0.00029549,30]
[391344020,1760551833365,-151.0,0.00029549,30]
[391344021,1760551833375,-151.0,0.00029549,30]
[391344022,1760551833385,-157.142272,0.00029549,30]
[391344023,1760551833395,-258256.3710635,0.00029549,2]
[391344093,1760551839701,-225.34,0.00029539,10]
[391344094,1760551839711,-157.142272,0.00029549,30]
[391344095,1760551839721,-157.142272,0.00029549,30]
[391344096,1760551839731,-157.142272,0.00029549,30]
[391344097,1760551839741,-2467.19401858,0.00029549,2]
[391344098,1760551839753,-335.81769436,0.00029549,2]
[391344157,1760553031870,-2609.01324841,0.00019205,5]
[391344158,1760553031880,-1379.82353159,0.00024142,2]
[391344619,1760553043136,-534.69389704,0.00024142,2]
[391344884,1760553045987,-27765.0,0.00024142,2]
[391345297,1760553543883,343.078728,0.00013699,2]
[391345298,1760553635622,302.51602579,0.000189,2]
[391345344,1760554232092,-343.078728,0.00020187,2]
[391345345,1760554232102,-163.97118609,0.00024042,2]
[391345346,1760554232112,-1216.93616988,0.00024142,2]
[391345385,1760554238139,-2095.91730918,0.00024142,2]
[391345386,1760554238151,-8439.1806699,0.00024142,2]
[391345387,1760554238194,-8981.40000008,0.00024142,2]
[391345391,1760554240114,-383.16140013,0.00024142,2]
[391345392,1760554240167,-3605.60637989,0.00024142,2]
[391345393,1760554240178,-166.0,0.00024142,3]
[391345394,1760554240188,-166.0,0.00024142,3]
[391345395,1760554240197,-166.0,0.00024142,3]
[391345396,1760554240207,-166.0,0.00024142,3]
[391345397,1760554240216,-175.0,0.00024142,3]
[391345398,1760554240226,-178.57916146,0.00024142,3]
[391345399,1760554240236,-150.0,0.00024265,2]
[391345400,1760554240245,-2834.8834183,0.00026676,2]
[391345401,1760554240255,-184.88,0.00026676,14]
[391345402,1760554240265,-343.078728,0.00026676,2]
[391345403,1760554240274,-162.217937,0.00027298,2]
[391345404,1760554240283,-168.265802,0.00027362,2]
[391345405,1760554240293,-333.667753,0.00027362,2]
[391345406,1760554240302,-170.38772579,0.00027397,2]
[391345407,1760554240312,-500.0,0.00027397,2]
[391345408,1760554240322,-500.0,0.00027397,2]
[391345409,1760554240333,-500.0,0.00027397,2]
[391345410,1760554240342,-500.0,0.00027397,2]
[391345411,1760554240351,-500.0,0.00027397,2]
[391345412,1760554240361,-500.0,0.00027397,2]
[391345413,1760554240370,-500.0,0.00027397,2]
[391345414,1760554240379,-500.0,0.00027397,2]
[391345415,1760554240388,-500.0,0.00027397,2]
[391345416,1760554240398,-500.0,0.00027397,2]
[391345417,1760554240407,-500.0,0.00027397,2]
[391345418,1760554240417,-500.0,0.00027397,2]
[391345419,1760554240428,-500.0,0.00027397,2]
[391345420,1760554240437,-495.32469674,0.00027397,2]
[391345421,1760554240446,-162.217937,0.0002744,14]
[391345422,1760554240456,-162.217937,0.00027447,2]
[391345423,1760554240465,-154.25,0.00027762,15]
[391345424,1760554240475,-150.93,0.00027765,15]
[391345425,1760554240484,-154.25,0.00027862,15]
[391345426,1760554240493,-169.5172239,0.00027981,2]
[391345427,1760554240502,-163.0283614,0.00028027,30]
[391345428,1760554240511,-163.0283614,0.00028027,30]
[391345429,1760554240520,-163.0283614,0.00028027,30]
[391345430,1760554240530,-163.0283614,0.00028027,30]
[391345431,1760554240540,-163.0283614,0.00028027,30]
[391345432,1760554240549,-165.8929288,0.00028027,30]
[391345433,1760554240558,-160.0,0.000281,2]
[391345434,1760554240567,-392.2568334,0.00028411,30]
[391345435,1760554240576,-392.2568334,0.00028411,30]
[391345436,1760554240585,-392.2568334,0.00028411,30]
[391345437,1760554240595,-392.2568334,0.00028411,30]
[391345438,1760554240604,-392.2568334,0.00028411,30]
[391345439,1760554240613,-392.2568334,0.00028411,30]
[391345440,1760554240622,-392.2568334,0.00028411,30]
[391345441,1760554240632,-500.0,0.00028514,7]
[391345442,1760554240641,-260.0,0.00028648,2]
[391345443,1760554240650,-402.51317252,0.0002877,2]
[391345444,1760554240659,-162.217937,0.00028794,7]
[391345445,1760554240669,-1958.42044235,0.000288,10]
[391345446,1760554240680,-162.217937,0.00028923,5]
[391345447,1760554240690,-300.0,0.00029196,2]
[391345448,1760554240699,-666.44574338,0.00029239,2]
[391345449,1760554240708,-162.217937,0.00029251,30]
[391345450,1760554240718,-162.217937,0.00029259,20]
[391345451,1760554240728,-662.427304,0.00029273,2]
[391345452,1760554240737,-151.0,0.00029273,2]
[391345453,1760554240746,-151.0,0.00029273,2]
[391345454,1760554240755,-153.23503792,0.00029273,2]
[391345455,1760554240765,-162.217937,0.00029273,7]
[391345456,1760554240774,-172.47454085,0.00029279,2]
[391345457,1760554240783,-500.0,0.00029279,2]
[391345458,1760554240793,-320.2868043,0.00029279,2]
[391345459,1760554240804,-179.7131957,0.00029279,2]
[391345460,1760554240814,-440.0,0.00029279,2]
[391345461,1760554240928,-360.58282688,0.00029279,2]
[391345462,1760554240943,-500.0,0.00029279,2]
[391345463,1760554240954,-500.0,0.00029279,2]
[391345464,1760554240965,-85.69393029,0.00029279,2]
[391345825,1760555369201,500.0,0.00030502,60]
[391345826,1760555369455,459.08371287,0.00030502,60]
[391345847,1760555432170,-162.217937,0.00027447,2]
[391345848,1760555432181,-395.79666544,0.00027937,30]
[391345918,1760555438209,-400.35,0.00027937,30]
[391346009,1760555443294,-106.81600256,0.00027937,30]
[391346010,1760555443303,-500.0,0.00028514,7]
[391346011,1760555443313,-82.31223062,0.000286,30]
[391346014,1760555832836,186.86685298,0.00030502,60]
[391346016,1760556302938,291.616918,0.00013699,2]
[391346017,1760556324001,498.82729837,0.00030512,60]
[391346064,1760556632396,-291.616918,0.00020187,2]
[391346066,1760556632407,-150.0,0.00020187,2]
[391346068,1760556632417,-172.5,0.00020787,2]
[391346070,1760556632426,-195.0,0.00021387,2]
[391346071,1760556632436,-291.616918,0.00026676,2]
[391346073,1760556632445,-1082.02505968,0.00027386,2]
[391346075,1760556632456,-1806.90571765,0.00027386,2]
[391346077,1760556632468,-282.42569847,0.00027386,2]
[391346079,1760556632477,-217.57430153,0.00027636,2]
[391346095,1760556638401,-982.42569847,0.00027636,2]
[391346096,1760556638413,-300.0,0.00027637,2]
[391346097,1760556638422,-300.0,0.00027637,2]
[391346098,1760556638432,-300.0,0.00027637,2]
[391346099,1760556638442,-300.0,0.00027637,2]
[391346100,1760556638451,-300.0,0.00027637,2]
[391346101,1760556638462,-1200.0,0.00027638,2]
[391346102,1760556638472,-1987.65044789,0.0002764,2]
[391346103,1760556638481,-392.2568334,0.00027641,30]
[391346104,1760556638491,-392.2568334,0.00027641,30]
[391346105,1760556638505,-392.2568334,0.00027641,30]
[391346106,1760556638515,-392.2568334,0.00027641,30]
[391346107,1760556638524,-392.2568334,0.00027641,30]
[391346108,1760556638535,-392.2568334,0.00027641,30]
[391346109,1760556638547,-168.265802,0.00027972,60]
[391346110,1760556638558,-777.71705112,0.00028121,2]
[391346111,1760556638570,-157.30085288,0.00028121,2]
[391346112,1760556638580,-309.9446028,0.00028241,30]
[391346113,1760556638590,-392.2568334,0.00028241,30]
[391346114,1760556638599,-392.80709491,0.00028514,7]
[391346115,1760556638609,-151.0,0.00028514,30]
[391346116,1760556638619,-151.0,0.00028514,30]
[391346117,1760556638630,-151.0,0.00028514,30]
[391346118,1760556638640,-151.0,0.00028514,30]
[391346119,1760556638649,-151.0,0.00028514,30]
[391346120,1760556638659,-151.0,0.00028514,30]
[391346121,1760556638668,-167.969768,0.00028514,30]
[391346122,1760556638678,-151.0,0.00028514,30]
[391346123,1760556638687,-167.969768,0.00028514,30]
[391346124,1760556638696,-151.0,0.00028514,30]
[391346125,1760556638706,-167.969768,0.00028514,30]
[391346126,1760556638716,-151.0,0.00028514,30]
[391346127,1760556638725,-167.969768,0.00028514,30]
[391346128,1760556638735,-229.118033,0.00028514,30]
[391346129,1760556638744,-229.118033,0.00028514,30]
[391346130,1760556638753,-229.118033,0.00028514,30]
[391346131,1760556638763,-229.118033,0.00028514,30]
[391346132,1760556638772,-151.0,0.00028514,30]
[391346133,1760556638782,-664.219726,0.00028514,30]
[391346134,1760556638791,-151.0,0.00028514,30]
[391346135,1760556638801,-151.0,0.00028514,30]
[391346136,1760556638810,-664.219726,0.00028514,30]
[391346137,1760556638819,-151.0,0.00028514,30]
[391346138,1760556638828,-151.0,0.00028514,30]
[391346139,1760556638838,-664.219726,0.00028514,30]
[391346140,1760556638848,-664.219726,0.00028514,30]